[Event "Titled Tuesday Blitz July 25 Early 2023"]
[White "Khamdamova, Afruza"]
[Black "Goltsev, Dmitry"]
[WhiteFideId "14210444"]
[BlackFideId "24176710"]
[WhiteElo "2509"]
[BlackElo "2714"]
[Result "1-0"]
[Round "6"]
[TimeControl "180+2"]
[Date "2023.07.25"]
[WhiteClock "0:00:12"]
[BlackClock "0:00:02"]
[Board "80"]

1. e4 {[%clk 0:03:00]}  e6 {[%clk 0:02:59]} 2. d4 {[%clk 0:03:00]}  d5 {[%clk 0:03:00]} 3. Nd2 {[%clk 0:03:00]}  c5 {[%clk 0:03:00]} 4. Ngf3 {[%clk 0:03:00]}  Nf6 {[%clk 0:02:59]} 5. exd5 {[%clk 0:03:00]}  exd5 {[%clk 0:03:00]} 6. Bb5+ {[%clk 0:02:59]}  Nc6 {[%clk 0:03:00]} 7. O-O {[%clk 0:02:59]}  Be7 {[%clk 0:02:58]} 8. dxc5 {[%clk 0:02:59]}  Bxc5 {[%clk 0:02:59]} 9. Re1+ {[%clk 0:02:59]}  Be6 {[%clk 0:02:59]} 10. Nb3 {[%clk 0:02:58]}  Bb6 {[%clk 0:02:58]} 11. Nbd4 {[%clk 0:02:54]}  O-O {[%clk 0:02:58]} 12. Bxc6 {[%clk 0:02:49]}  bxc6 {[%clk 0:02:57]} 13. Nxc6 {[%clk 0:02:43]}  Qd6 {[%clk 0:02:56]} 14. Ncd4 {[%clk 0:02:42]}  Bg4 {[%clk 0:02:57]} 15. c3 {[%clk 0:02:41]}  Ne4 {[%clk 0:02:55]} 16. h3 {[%clk 0:02:38]}  Bh5 {[%clk 0:02:55]} 17. Be3 {[%clk 0:02:38]}  f5 {[%clk 0:02:47]} 18. Nb5 {[%clk 0:02:37]}  Qd7 {[%clk 0:02:39]} 19. a4 {[%clk 0:02:12]}  a6 {[%clk 0:02:32]} 20. Bxb6 {[%clk 0:02:11]}  axb5 {[%clk 0:02:32]} 21. a5 {[%clk 0:01:42]}  Rf6 {[%clk 0:02:20]} 22. Ne5 {[%clk 0:01:37]}  Qe8 {[%clk 0:02:17]} 23. Qxd5+ {[%clk 0:01:37]}  Kh8 {[%clk 0:02:16]} 24. f3 {[%clk 0:01:26]}  Rd6 {[%clk 0:02:14]} 25. Qb3 {[%clk 0:00:45]}  Qxe5 {[%clk 0:02:10]} 26. fxe4 {[%clk 0:00:45]}  fxe4 {[%clk 0:02:11]} 27. Bd4 {[%clk 0:00:44]}  Qg5 {[%clk 0:02:06]} 28. Kh1 {[%clk 0:00:41]}  Rg6 {[%clk 0:02:01]} 29. Rg1 {[%clk 0:00:41]}  Qg3 {[%clk 0:01:55]} 30. Qd5 {[%clk 0:00:38]}  Rf8 {[%clk 0:01:16]} 31. Qxh5 {[%clk 0:00:37]}  e3 {[%clk 0:01:13]} 32. Qe5 {[%clk 0:00:24]}  Qh4 {[%clk 0:00:57]} 33. Qxe3 {[%clk 0:00:23]}  Rg3 {[%clk 0:00:52]} 34. Qe6 {[%clk 0:00:23]}  h6 {[%clk 0:00:46]} 35. Raf1 {[%clk 0:00:22]}  Rd8 {[%clk 0:00:36]} 36. Rf7 {[%clk 0:00:21]}  Rd6 {[%clk 0:00:32]} 37. Rf8+ {[%clk 0:00:19]}  Kh7 {[%clk 0:00:32]} 38. Qxd6 {[%clk 0:00:17]}  b4 {[%clk 0:00:26]} 39. Qe5 {[%clk 0:00:14]}  bxc3 {[%clk 0:00:19]} 40. bxc3 {[%clk 0:00:14]}  h5 {[%clk 0:00:16]} 41. Qf5+ {[%clk 0:00:14]}  Rg6 {[%clk 0:00:11]} 42. Rh8+ {[%clk 0:00:12]}  Kxh8 {[%clk 0:00:11]} 43. Qxg6 {[%clk 0:00:13]}  Qe7 {[%clk 0:00:09]} 44. a6 {[%clk 0:00:13]}  h4 {[%clk 0:00:07]} 45. a7 {[%clk 0:00:13]}  Qb7 {[%clk 0:00:02]} 46. a8=Q+ {[%clk 0:00:12]}  Qxa8 {[%clk 0:00:02]} 47. Qxg7# {[%clk 0:00:12]} 1-0


[Site "https://www.chess.com"]

[Event "Titled Tuesday Blitz July 25 Early 2023"]
[White "Turzo, Attila"]
[Black "Williams, Simon K"]
[WhiteFideId "704954"]
[BlackFideId "404454"]
[WhiteElo "2508"]
[BlackElo "2712"]
[Result "0-1"]
[Round "6"]
[TimeControl "180+2"]
[Date "2023.07.25"]
[WhiteClock "0:00:00"]
[BlackClock "0:00:10"]
[Board "81"]

1. d4 {[%clk 0:03:00]}  e6 {[%clk 0:02:59]} 2. c4 {[%clk 0:02:59]}  b6 {[%clk 0:02:58]} 3. a3 {[%clk 0:02:55]}  c5 {[%clk 0:02:57]} 4. d5 {[%clk 0:02:51]}  exd5 {[%clk 0:02:57]} 5. cxd5 {[%clk 0:02:52]}  d6 {[%clk 0:02:57]} 6. Nc3 {[%clk 0:02:51]}  Nf6 {[%clk 0:02:56]} 7. Nf3 {[%clk 0:02:48]}  g6 {[%clk 0:02:56]} 8. Nd2 {[%clk 0:02:48]}  Bg7 {[%clk 0:02:55]} 9. e4 {[%clk 0:02:49]}  O-O {[%clk 0:02:55]} 10. Be2 {[%clk 0:02:49]}  Nbd7 {[%clk 0:02:39]} 11. O-O {[%clk 0:02:45]}  Re8 {[%clk 0:02:38]} 12. a4 {[%clk 0:02:36]}  a6 {[%clk 0:02:26]} 13. Qc2 {[%clk 0:02:21]}  Nh5 {[%clk 0:02:22]} 14. Nc4 {[%clk 0:02:19]}  Ne5 {[%clk 0:02:21]} 15. Na3 {[%clk 0:02:08]}  Qh4 {[%clk 0:02:19]} 16. Be3 {[%clk 0:01:55]}  Nf4 {[%clk 0:02:00]} 17. f3 {[%clk 0:01:34]}  f5 {[%clk 0:01:23]} 18. g3 {[%clk 0:01:28]}  Nxe2+ {[%clk 0:01:22]} 19. Qxe2 {[%clk 0:01:25]}  Qh5 {[%clk 0:01:21]} 20. exf5 {[%clk 0:01:16]}  Bxf5 {[%clk 0:01:19]} 21. g4 {[%clk 0:01:11]}  Bxg4 {[%clk 0:01:17]} 22. fxg4 {[%clk 0:00:52]}  Nxg4 {[%clk 0:01:15]} 23. Nc2 {[%clk 0:00:50]}  Bd4 {[%clk 0:01:09]} 24. Nd1 {[%clk 0:00:37]}  Re5 {[%clk 0:01:05]} 25. Qd2 {[%clk 0:00:29]}  Rae8 {[%clk 0:00:56]} 26. Ra3 {[%clk 0:00:26]}  b5 {[%clk 0:00:45]} 27. axb5 {[%clk 0:00:24]}  axb5 {[%clk 0:00:46]} 28. Kh1 {[%clk 0:00:13]}  b4 {[%clk 0:00:44]} 29. Rd3 {[%clk 0:00:12]}  Qh3 {[%clk 0:00:38]} 30. Re1 {[%clk 0:00:06]}  Bxe3 {[%clk 0:00:25]} 31. Ncxe3 {[%clk 0:00:06]}  Qf3+ {[%clk 0:00:24]} 32. Qg2 {[%clk 0:00:05]}  Qf4 {[%clk 0:00:15]} 33. Qxg4 {[%clk 0:00:03]}  Qxg4 {[%clk 0:00:15]} 34. Nxg4 {[%clk 0:00:04]}  Rxe1+ {[%clk 0:00:15]} 35. Kg2 {[%clk 0:00:05]}  Kg7 {[%clk 0:00:15]} 36. Ngf2 {[%clk 0:00:05]}  R8e2 {[%clk 0:00:15]} 37. Kf3 {[%clk 0:00:03]}  Re5 {[%clk 0:00:15]} 38. b3 {[%clk 0:00:03]}  h5 {[%clk 0:00:15]} 39. h4 {[%clk 0:00:03]}  Kf6 {[%clk 0:00:15]} 40. Rd2 {[%clk 0:00:02]}  Kf5 {[%clk 0:00:15]} 41. Nb2 {[%clk 0:00:02]}  Rb1 {[%clk 0:00:15]} 42. Nc4 {[%clk 0:00:01]}  Rxb3+ {[%clk 0:00:14]} 43. Kg2 {[%clk 0:00:01]}  Rc3 {[%clk 0:00:10]} 44. Nxe5 {[%clk 0:00:00]}  Kxe5 {[%clk 0:00:10]} 0-1


[Site "https://www.chess.com"]

[Event "Titled Tuesday Blitz July 25 Early 2023"]
[White "Liyanage, Ranindu Dilshan"]
[Black "Koutlas, Nikolaos"]
[WhiteFideId "9915834"]
[BlackFideId "25827138"]
[WhiteElo "2705"]
[BlackElo "2501"]
[Result "0-1"]
[Round "6"]
[TimeControl "180+2"]
[Date "2023.07.25"]
[WhiteClock "0:00:05"]
[BlackClock "0:00:04"]
[Board "83"]

1. e4 {[%clk 0:03:00]}  c5 {[%clk 0:02:56]} 2. Nc3 {[%clk 0:03:00]}  g6 {[%clk 0:02:54]} 3. f4 {[%clk 0:02:56]}  Bg7 {[%clk 0:02:54]} 4. Nf3 {[%clk 0:02:56]}  Nf6 {[%clk 0:02:54]} 5. e5 {[%clk 0:02:52]}  Ng8 {[%clk 0:02:53]} 6. d4 {[%clk 0:02:51]}  cxd4 {[%clk 0:02:52]} 7. Nxd4 {[%clk 0:02:52]}  Nc6 {[%clk 0:02:48]} 8. Be3 {[%clk 0:02:48]}  Nh6 {[%clk 0:02:47]} 9. Bc4 {[%clk 0:02:41]}  O-O {[%clk 0:02:47]} 10. O-O {[%clk 0:02:39]}  d6 {[%clk 0:02:45]} 11. e6 {[%clk 0:02:29]}  f5 {[%clk 0:02:23]} 12. h3 {[%clk 0:02:16]}  Kh8 {[%clk 0:02:22]} 13. Nf3 {[%clk 0:02:07]}  Qa5 {[%clk 0:02:04]} 14. Bb3 {[%clk 0:01:48]}  Ng8 {[%clk 0:01:48]} 15. Ng5 {[%clk 0:01:42]}  h6 {[%clk 0:01:45]} 16. Nf7+ {[%clk 0:01:40]}  Kh7 {[%clk 0:01:44]} 17. Qe1 {[%clk 0:01:37]}  Nd8 {[%clk 0:01:32]} 18. Qh4 {[%clk 0:01:03]}  Nxf7 {[%clk 0:01:18]} 19. exf7 {[%clk 0:01:01]}  Nf6 {[%clk 0:01:19]} 20. Rae1 {[%clk 0:01:00]}  d5 {[%clk 0:01:08]} 21. Bd4 {[%clk 0:00:57]}  Rxf7 {[%clk 0:01:08]} 22. Kh1 {[%clk 0:00:43]}  e6 {[%clk 0:01:01]} 23. Ne2 {[%clk 0:00:29]}  Bd7 {[%clk 0:00:53]} 24. g4 {[%clk 0:00:22]}  Ne4 {[%clk 0:00:45]} 25. Bxg7 {[%clk 0:00:21]}  Kxg7 {[%clk 0:00:43]} 26. Nd4 {[%clk 0:00:21]}  Qd2 {[%clk 0:00:36]} 27. c3 {[%clk 0:00:13]}  g5 {[%clk 0:00:34]} 28. fxg5 {[%clk 0:00:02]}  hxg5 {[%clk 0:00:32]} 29. Nf3 {[%clk 0:00:01]}  gxh4 {[%clk 0:00:22]} 30. Nxd2 {[%clk 0:00:01]}  Nxd2 {[%clk 0:00:22]} 31. Rf4 {[%clk 0:00:02]}  Nxb3 {[%clk 0:00:20]} 32. axb3 {[%clk 0:00:03]}  Re8 {[%clk 0:00:12]} 33. gxf5 {[%clk 0:00:02]}  exf5 {[%clk 0:00:13]} 34. Rg1+ {[%clk 0:00:02]}  Kf6 {[%clk 0:00:10]} 35. Rxh4 {[%clk 0:00:02]}  Re4 {[%clk 0:00:10]} 36. Rh6+ {[%clk 0:00:02]}  Ke7 {[%clk 0:00:10]} 37. Rd1 {[%clk 0:00:03]}  Bc6 {[%clk 0:00:10]} 38. Kh2 {[%clk 0:00:03]}  Re2+ {[%clk 0:00:10]} 39. Kg3 {[%clk 0:00:04]}  Rg7+ {[%clk 0:00:07]} 40. Kf4 {[%clk 0:00:04]}  Re4+ {[%clk 0:00:07]} 41. Kxf5 {[%clk 0:00:04]}  Rf7+ {[%clk 0:00:07]} 42. Kg6 {[%clk 0:00:04]}  Re6+ {[%clk 0:00:06]} 43. Kh5 {[%clk 0:00:04]}  Rf5+ {[%clk 0:00:06]} 44. Kg4 {[%clk 0:00:05]}  Rxh6 {[%clk 0:00:06]} 45. Kxf5 {[%clk 0:00:05]}  Rxh3 {[%clk 0:00:06]} 46. Rg1 {[%clk 0:00:05]}  Rh2 {[%clk 0:00:05]} 47. Ke5 {[%clk 0:00:04]}  Re2+ {[%clk 0:00:04]} 48. Kd4 {[%clk 0:00:03]}  Rxb2 {[%clk 0:00:04]} 49. b4 {[%clk 0:00:04]}  Kd6 {[%clk 0:00:02]} 50. Rg6+ {[%clk 0:00:05]}  Kc7 {[%clk 0:00:02]} 51. Kc5 {[%clk 0:00:05]}  b6+ {[%clk 0:00:02]} 52. Kd4 {[%clk 0:00:06]}  Rd2+ {[%clk 0:00:02]} 53. Ke5 {[%clk 0:00:06]}  Re2+ {[%clk 0:00:02]} 54. Kd4 {[%clk 0:00:07]}  Re4+ {[%clk 0:00:02]} 55. Kd3 {[%clk 0:00:08]}  Bb5+ {[%clk 0:00:03]} 56. Kc2 {[%clk 0:00:08]}  Kb7 {[%clk 0:00:03]} 57. Rd6 {[%clk 0:00:06]}  Bc4 {[%clk 0:00:03]} 58. Kb2 {[%clk 0:00:06]}  Re2+ {[%clk 0:00:03]} 59. Kc1 {[%clk 0:00:06]}  a5 {[%clk 0:00:04]} 60. bxa5 {[%clk 0:00:04]}  bxa5 {[%clk 0:00:04]} 61. Rd7+ {[%clk 0:00:05]}  Kc6 {[%clk 0:00:04]} 62. Ra7 {[%clk 0:00:05]}  Kb6 {[%clk 0:00:04]} 63. Kd1 {[%clk 0:00:05]}  Kxa7 {[%clk 0:00:04]} 0-1


[Site "https://www.chess.com"]

[Event "Titled Tuesday Blitz July 25 Early 2023"]
[White "Marek, Matyas"]
[Black "Mmukka"]
[WhiteFideId "335398"]
[WhiteElo "2698"]
[BlackElo "2498"]
[Result "1-0"]
[Round "6"]
[TimeControl "180+2"]
[Date "2023.07.25"]
[WhiteClock "0:00:21"]
[BlackClock "0:00:00"]
[Board "85"]

1. Nf3 {[%clk 0:03:00]}  Nf6 {[%clk 0:02:59]} 2. g3 {[%clk 0:03:01]}  g6 {[%clk 0:02:59]} 3. Bg2 {[%clk 0:03:02]}  Bg7 {[%clk 0:03:00]} 4. O-O {[%clk 0:03:03]}  O-O {[%clk 0:03:00]} 5. d3 {[%clk 0:03:04]}  d6 {[%clk 0:03:00]} 6. e4 {[%clk 0:03:03]}  e5 {[%clk 0:02:59]} 7. Re1 {[%clk 0:03:04]}  Nbd7 {[%clk 0:02:59]} 8. c3 {[%clk 0:03:03]}  Re8 {[%clk 0:02:58]} 9. Nbd2 {[%clk 0:03:02]}  Nf8 {[%clk 0:02:56]} 10. d4 {[%clk 0:03:02]}  N6d7 {[%clk 0:02:42]} 11. b3 {[%clk 0:03:00]}  exd4 {[%clk 0:02:21]} 12. cxd4 {[%clk 0:03:00]}  h6 {[%clk 0:02:03]} 13. Bb2 {[%clk 0:03:00]}  Nc5 {[%clk 0:01:59]} 14. Qc2 {[%clk 0:02:55]}  Na6 {[%clk 0:01:48]} 15. a3 {[%clk 0:02:54]}  c6 {[%clk 0:01:45]} 16. b4 {[%clk 0:02:52]}  Nc7 {[%clk 0:01:44]} 17. Nb3 {[%clk 0:02:35]}  d5 {[%clk 0:01:42]} 18. e5 {[%clk 0:02:35]}  Bf5 {[%clk 0:01:42]} 19. Qd2 {[%clk 0:02:33]}  g5 {[%clk 0:01:40]} 20. Rac1 {[%clk 0:02:28]}  Nfe6 {[%clk 0:01:40]} 21. h3 {[%clk 0:02:24]}  Bg6 {[%clk 0:01:38]} 22. Nh2 {[%clk 0:02:24]}  f6 {[%clk 0:01:35]} 23. Ng4 {[%clk 0:02:19]}  f5 {[%clk 0:01:33]} 24. Ne3 {[%clk 0:02:13]}  f4 {[%clk 0:01:31]} 25. Ng4 {[%clk 0:02:13]}  Rf8 {[%clk 0:01:29]} 26. Rc3 {[%clk 0:02:01]}  Qe7 {[%clk 0:01:21]} 27. Nc5 {[%clk 0:01:45]}  Nxc5 {[%clk 0:01:20]} 28. bxc5 {[%clk 0:01:40]}  Ne6 {[%clk 0:01:19]} 29. Rb3 {[%clk 0:01:40]}  h5 {[%clk 0:01:12]} 30. Nf6+ {[%clk 0:01:36]}  Bxf6 {[%clk 0:01:02]} 31. exf6 {[%clk 0:01:36]}  Qxf6 {[%clk 0:01:02]} 32. Rxb7 {[%clk 0:01:34]}  f3 {[%clk 0:01:00]} 33. Bf1 {[%clk 0:01:34]}  h4 {[%clk 0:00:57]} 34. Re5 {[%clk 0:01:17]}  hxg3 {[%clk 0:00:56]} 35. fxg3 {[%clk 0:01:17]}  f2+ {[%clk 0:00:56]} 36. Kh2 {[%clk 0:01:18]}  Rae8 {[%clk 0:00:34]} 37. Rb3 {[%clk 0:01:18]}  g4 {[%clk 0:00:25]} 38. h4 {[%clk 0:01:15]}  Ng7 {[%clk 0:00:25]} 39. Rbe3 {[%clk 0:01:05]}  Be4 {[%clk 0:00:25]} 40. Rg5 {[%clk 0:01:00]}  Kf7 {[%clk 0:00:17]} 41. Rxg4 {[%clk 0:00:57]}  Nf5 {[%clk 0:00:16]} 42. Rf4 {[%clk 0:00:47]}  Rg8 {[%clk 0:00:06]} 43. Qxf2 {[%clk 0:00:45]}  Ke6 {[%clk 0:00:04]} 44. Rexe4+ {[%clk 0:00:43]}  dxe4 {[%clk 0:00:04]} 45. Bc4+ {[%clk 0:00:44]}  Kd7 {[%clk 0:00:04]} 46. Bxg8 {[%clk 0:00:41]}  e3 {[%clk 0:00:04]} 47. Rxf5 {[%clk 0:00:28]}  exf2 {[%clk 0:00:04]} 48. Rxf6 {[%clk 0:00:29]}  Re2 {[%clk 0:00:02]} 49. Kg2 {[%clk 0:00:21]}  Rxb2 {[%clk 0:00:02]} 50. Rxf2 {[%clk 0:00:21]}  Rb3 {[%clk 0:00:00]} 51. Bxb3 {[%clk 0:00:21]} 1-0


[Site "https://www.chess.com"]

[Event "Titled Tuesday Blitz July 25 Early 2023"]
[White "Gubajdullin, Alexei"]
[Black "Lopez, Henry"]
[WhiteFideId "4141202"]
[BlackFideId "5203830"]
[WhiteElo "2693"]
[BlackElo "2477"]
[Result "0-1"]
[Round "6"]
[TimeControl "180+2"]
[Date "2023.07.25"]
[WhiteClock "0:00:43"]
[BlackClock "0:02:00"]
[Board "88"]

1. d4 {[%clk 0:03:00]}  d5 {[%clk 0:02:58]} 2. Nf3 {[%clk 0:02:58]}  Nf6 {[%clk 0:02:57]} 3. Bf4 {[%clk 0:02:57]}  c5 {[%clk 0:02:57]} 4. e3 {[%clk 0:02:56]}  Nc6 {[%clk 0:02:57]} 5. Nbd2 {[%clk 0:02:55]}  Qb6 {[%clk 0:02:55]} 6. dxc5 {[%clk 0:02:53]}  Qxc5 {[%clk 0:02:54]} 7. c4 {[%clk 0:02:51]}  d4 {[%clk 0:02:52]} 8. exd4 {[%clk 0:02:44]}  Nxd4 {[%clk 0:02:51]} 9. Nb3 {[%clk 0:02:38]}  Nxb3 {[%clk 0:02:37]} 10. Qxb3 {[%clk 0:02:36]}  e6 {[%clk 0:02:37]} 11. O-O-O {[%clk 0:02:33]}  Be7 {[%clk 0:02:34]} 12. Qa4+ {[%clk 0:02:20]}  Bd7 {[%clk 0:02:29]} 13. Rxd7 {[%clk 0:02:18]}  Nxd7 {[%clk 0:02:28]} 14. Ne5 {[%clk 0:02:04]}  Qc8 {[%clk 0:02:28]} 15. Be2 {[%clk 0:02:01]}  f6 {[%clk 0:02:27]} 16. Bg4 {[%clk 0:01:19]}  fxe5 {[%clk 0:02:25]} 17. Bxe6 {[%clk 0:01:18]}  Qc6 {[%clk 0:02:25]} 18. Qxc6 {[%clk 0:01:11]}  bxc6 {[%clk 0:02:24]} 19. Bd2 {[%clk 0:01:10]}  Nc5 {[%clk 0:02:20]} 20. Bh3 {[%clk 0:01:07]}  Nd3+ {[%clk 0:02:19]} 21. Kc2 {[%clk 0:01:03]}  Nxf2 {[%clk 0:02:20]} 22. Re1 {[%clk 0:01:04]}  Nxh3 {[%clk 0:02:19]} 23. gxh3 {[%clk 0:01:04]}  Bf6 {[%clk 0:02:18]} 24. a4 {[%clk 0:01:03]}  O-O-O {[%clk 0:02:15]} 25. b4 {[%clk 0:01:01]}  Rd4 {[%clk 0:02:10]} 26. b5 {[%clk 0:00:57]}  Rxc4+ {[%clk 0:02:08]} 27. Kb2 {[%clk 0:00:57]}  Rxa4 {[%clk 0:02:05]} 28. bxc6 {[%clk 0:00:55]}  Kc7 {[%clk 0:02:05]} 29. Kb3 {[%clk 0:00:55]}  Ra6 {[%clk 0:02:04]} 30. Bb4 {[%clk 0:00:52]}  Rb8 {[%clk 0:02:02]} 31. Kc4 {[%clk 0:00:50]}  Rxc6+ {[%clk 0:02:01]} 32. Kb3 {[%clk 0:00:43]}  a5 {[%clk 0:02:00]} 0-1


[Site "https://www.chess.com"]

[Event "Titled Tuesday Blitz July 25 Early 2023"]
[White "Oleksiyenko, Mykhaylo"]
[Black "Vivas Zamora, Fabian Ernesto"]
[WhiteFideId "4152417"]
[BlackFideId "3902480"]
[WhiteElo "2659"]
[BlackElo "2451"]
[Result "1-0"]
[Round "6"]
[TimeControl "180+2"]
[Date "2023.07.25"]
[WhiteClock "0:00:06"]
[BlackClock "0:00:00"]
[Board "94"]

1. e4 {[%clk 0:03:00]}  e5 {[%clk 0:02:52]} 2. Nf3 {[%clk 0:03:00]}  Nc6 {[%clk 0:02:52]} 3. Bb5 {[%clk 0:03:00]}  Nf6 {[%clk 0:02:51]} 4. O-O {[%clk 0:03:00]}  Nxe4 {[%clk 0:02:51]} 5. d4 {[%clk 0:03:00]}  Nd6 {[%clk 0:02:51]} 6. dxe5 {[%clk 0:03:01]}  Nxb5 {[%clk 0:02:50]} 7. a4 {[%clk 0:03:01]}  Nbd4 {[%clk 0:02:49]} 8. Nxd4 {[%clk 0:03:02]}  d5 {[%clk 0:02:38]} 9. c3 {[%clk 0:03:00]}  Be7 {[%clk 0:02:28]} 10. f4 {[%clk 0:02:59]}  O-O {[%clk 0:02:24]} 11. Be3 {[%clk 0:03:00]}  f6 {[%clk 0:02:20]} 12. Nxc6 {[%clk 0:02:57]}  bxc6 {[%clk 0:02:21]} 13. Nd2 {[%clk 0:02:58]}  Ba6 {[%clk 0:02:13]} 14. Rf2 {[%clk 0:02:50]}  fxe5 {[%clk 0:02:10]} 15. fxe5 {[%clk 0:02:51]}  Qd7 {[%clk 0:01:54]} 16. Nb3 {[%clk 0:02:38]}  Qe6 {[%clk 0:01:43]} 17. Qd4 {[%clk 0:02:26]}  Bc4 {[%clk 0:01:36]} 18. Nc5 {[%clk 0:02:13]}  Bxc5 {[%clk 0:01:23]} 19. Qxc5 {[%clk 0:02:14]}  Qxe5 {[%clk 0:01:21]} 20. Bd4 {[%clk 0:01:54]}  Qe6 {[%clk 0:00:57]} 21. Rxf8+ {[%clk 0:01:40]}  Rxf8 {[%clk 0:00:58]} 22. Qxa7 {[%clk 0:01:40]}  Qf7 {[%clk 0:00:41]} 23. h3 {[%clk 0:01:37]}  Bd3 {[%clk 0:00:39]} 24. Qc5 {[%clk 0:01:13]}  Qg6 {[%clk 0:00:26]} 25. Kh2 {[%clk 0:00:55]}  Be4 {[%clk 0:00:05]} 26. Rg1 {[%clk 0:00:54]}  Rf1 {[%clk 0:00:06]} 27. Be5 {[%clk 0:00:24]}  h5 {[%clk 0:00:05]} 28. Bxc7 {[%clk 0:00:19]}  Qf7 {[%clk 0:00:03]} 29. Bg3 {[%clk 0:00:13]}  Rxg1 {[%clk 0:00:01]} 30. Qxg1 {[%clk 0:00:12]}  Qb7 {[%clk 0:00:01]} 31. b4 {[%clk 0:00:11]}  Qa6 {[%clk 0:00:01]} 32. a5 {[%clk 0:00:10]}  Qd3 {[%clk 0:00:02]} 33. Qf2 {[%clk 0:00:08]}  Qxc3 {[%clk 0:00:01]} 34. a6 {[%clk 0:00:08]}  Qa3 {[%clk 0:00:01]} 35. a7 {[%clk 0:00:08]}  Kh7 {[%clk 0:00:01]} 36. Be5 {[%clk 0:00:08]}  c5 {[%clk 0:00:01]} 37. bxc5 {[%clk 0:00:07]}  d4 {[%clk 0:00:00]} 38. Qxd4 {[%clk 0:00:06]} 1-0


[Site "https://www.chess.com"]

[Event "Titled Tuesday Blitz July 25 Early 2023"]
[White "Rangel, Daniel"]
[Black "Seemann, Jakub"]
[WhiteFideId "2124475"]
[BlackFideId "21874697"]
[WhiteElo "2440"]
[BlackElo "2654"]
[Result "0-1"]
[Round "6"]
[TimeControl "180+2"]
[Date "2023.07.25"]
[WhiteClock "0:00:00"]
[BlackClock "0:02:19"]
[Board "95"]

1. c4 {[%clk 0:03:00]}  e6 {[%clk 0:03:00]} 2. g3 {[%clk 0:02:59]}  d5 {[%clk 0:03:01]} 3. Bg2 {[%clk 0:02:59]}  Nf6 {[%clk 0:03:01]} 4. Nf3 {[%clk 0:03:00]}  c6 {[%clk 0:03:00]} 5. b3 {[%clk 0:02:58]}  Bd6 {[%clk 0:02:56]} 6. O-O {[%clk 0:02:57]}  Nbd7 {[%clk 0:02:43]} 7. Bb2 {[%clk 0:02:48]}  e5 {[%clk 0:02:41]} 8. d3 {[%clk 0:02:44]}  O-O {[%clk 0:02:41]} 9. Nbd2 {[%clk 0:02:43]}  Re8 {[%clk 0:02:39]} 10. cxd5 {[%clk 0:02:39]}  cxd5 {[%clk 0:02:40]} 11. e4 {[%clk 0:02:39]}  d4 {[%clk 0:02:38]} 12. Nc4 {[%clk 0:02:37]}  Bc7 {[%clk 0:02:38]} 13. a4 {[%clk 0:02:37]}  Nf8 {[%clk 0:02:38]} 14. h3 {[%clk 0:02:28]}  Ng6 {[%clk 0:02:37]} 15. Nh2 {[%clk 0:02:12]}  Be6 {[%clk 0:02:36]} 16. Bc1 {[%clk 0:02:09]}  Bxc4 {[%clk 0:02:35]} 17. bxc4 {[%clk 0:02:07]}  h5 {[%clk 0:02:28]} 18. f4 {[%clk 0:02:03]}  h4 {[%clk 0:02:27]} 19. f5 {[%clk 0:01:54]}  hxg3 {[%clk 0:02:27]} 20. Ng4 {[%clk 0:01:36]}  Nf4 {[%clk 0:02:27]} 21. Nxf6+ {[%clk 0:00:52]}  Qxf6 {[%clk 0:02:25]} 22. Bxf4 {[%clk 0:00:53]}  exf4 {[%clk 0:02:24]} 23. Qg4 {[%clk 0:00:54]}  Be5 {[%clk 0:02:23]} 24. Rab1 {[%clk 0:00:45]}  b6 {[%clk 0:02:23]} 25. Rb5 {[%clk 0:00:45]}  Rac8 {[%clk 0:02:23]} 26. a5 {[%clk 0:00:40]}  Rc5 {[%clk 0:02:23]} 27. Rxc5 {[%clk 0:00:33]}  bxc5 {[%clk 0:02:23]} 28. Rb1 {[%clk 0:00:31]}  Qa6 {[%clk 0:02:22]} 29. Rb5 {[%clk 0:00:20]}  f3 {[%clk 0:02:22]} 30. Bxf3 {[%clk 0:00:17]}  Qh6 {[%clk 0:02:22]} 31. Rb2 {[%clk 0:00:04]}  Qe3+ {[%clk 0:02:21]} 32. Kg2 {[%clk 0:00:05]}  Rb8 {[%clk 0:02:18]} 33. Rxb8+ {[%clk 0:00:03]}  Bxb8 {[%clk 0:02:19]} 34. h4 {[%clk 0:00:00]}  Qf2+ {[%clk 0:02:19]} 0-1


[Site "https://www.chess.com"]

[Event "Titled Tuesday Blitz July 25 Early 2023"]
[White "Martic, Ivan"]
[Black "Pershina, Elena"]
[WhiteFideId "929301"]
[BlackFideId "24147516"]
[WhiteElo "2627"]
[BlackElo "2436"]
[Result "1-0"]
[Round "6"]
[TimeControl "180+2"]
[Date "2023.07.25"]
[WhiteClock "0:00:17"]
[BlackClock "0:00:58"]
[Board "96"]

1. c4 {[%clk 0:01:46]}  c6 {[%clk 0:02:55]} 2. d4 {[%clk 0:01:44]}  d5 {[%clk 0:02:55]} 3. cxd5 {[%clk 0:01:44]}  cxd5 {[%clk 0:02:55]} 4. Nc3 {[%clk 0:01:44]}  Nf6 {[%clk 0:02:54]} 5. Bf4 {[%clk 0:01:45]}  Nc6 {[%clk 0:02:54]} 6. e3 {[%clk 0:01:45]}  a6 {[%clk 0:02:53]} 7. Bd3 {[%clk 0:01:44]}  Bg4 {[%clk 0:02:51]} 8. f3 {[%clk 0:01:43]}  Bh5 {[%clk 0:02:48]} 9. Nge2 {[%clk 0:01:42]}  e6 {[%clk 0:02:48]} 10. O-O {[%clk 0:01:42]}  Bg6 {[%clk 0:02:47]} 11. Rc1 {[%clk 0:01:40]}  Bd6 {[%clk 0:02:43]} 12. Bxd6 {[%clk 0:01:36]}  Qxd6 {[%clk 0:02:44]} 13. a3 {[%clk 0:01:31]}  O-O {[%clk 0:02:43]} 14. Na4 {[%clk 0:01:25]}  Nd7 {[%clk 0:02:29]} 15. Bxg6 {[%clk 0:01:13]}  hxg6 {[%clk 0:02:27]} 16. b4 {[%clk 0:01:07]}  e5 {[%clk 0:02:24]} 17. Nc5 {[%clk 0:01:06]}  Nxc5 {[%clk 0:02:12]} 18. Rxc5 {[%clk 0:01:05]}  exd4 {[%clk 0:02:08]} 19. Nxd4 {[%clk 0:01:06]}  Nxd4 {[%clk 0:02:05]} 20. Qxd4 {[%clk 0:01:07]}  Rad8 {[%clk 0:02:03]} 21. Rd1 {[%clk 0:01:07]}  Rfe8 {[%clk 0:02:03]} 22. e4 {[%clk 0:01:03]}  Qe5 {[%clk 0:01:44]} 23. Qxe5 {[%clk 0:00:50]}  Rxe5 {[%clk 0:01:43]} 24. Kf2 {[%clk 0:00:48]}  f5 {[%clk 0:01:38]} 25. Rcxd5 {[%clk 0:00:46]}  Rexd5 {[%clk 0:01:30]} 26. Rxd5 {[%clk 0:00:47]}  Rc8 {[%clk 0:01:26]} 27. exf5 {[%clk 0:00:28]}  gxf5 {[%clk 0:01:25]} 28. Rxf5 {[%clk 0:00:28]}  Rc2+ {[%clk 0:01:21]} 29. Kg3 {[%clk 0:00:26]}  Ra2 {[%clk 0:01:19]} 30. Ra5 {[%clk 0:00:24]}  Kf7 {[%clk 0:01:17]} 31. b5 {[%clk 0:00:23]}  axb5 {[%clk 0:01:13]} 32. Rxb5 {[%clk 0:00:24]}  Rxa3 {[%clk 0:01:13]} 33. Rxb7+ {[%clk 0:00:24]}  Kg6 {[%clk 0:01:13]} 34. Rb6+ {[%clk 0:00:24]}  Kf7 {[%clk 0:01:12]} 35. h4 {[%clk 0:00:24]}  Ra2 {[%clk 0:01:11]} 36. Kh3 {[%clk 0:00:24]}  Ra3 {[%clk 0:01:10]} 37. Kg4 {[%clk 0:00:24]}  Ra4+ {[%clk 0:01:09]} 38. f4 {[%clk 0:00:23]}  Ra2 {[%clk 0:01:09]} 39. g3 {[%clk 0:00:23]}  Ra3 {[%clk 0:01:09]} 40. Rc6 {[%clk 0:00:22]}  Ra4 {[%clk 0:01:09]} 41. h5 {[%clk 0:00:22]}  Rb4 {[%clk 0:01:08]} 42. Ra6 {[%clk 0:00:22]}  Rc4 {[%clk 0:01:08]} 43. Kg5 {[%clk 0:00:20]}  Rc3 {[%clk 0:01:06]} 44. Ra7+ {[%clk 0:00:19]}  Kg8 {[%clk 0:01:04]} 45. g4 {[%clk 0:00:19]}  Kh7 {[%clk 0:01:04]} 46. h6 {[%clk 0:00:17]}  Rc5+ {[%clk 0:01:04]} 47. f5 {[%clk 0:00:18]}  Kh8 {[%clk 0:01:02]} 48. hxg7+ {[%clk 0:00:17]}  Kh7 {[%clk 0:01:01]} 49. g8=Q+ {[%clk 0:00:17]}  Kxg8 {[%clk 0:01:01]} 50. Kg6 {[%clk 0:00:18]}  Rc6+ {[%clk 0:01:01]} 51. f6 {[%clk 0:00:18]}  Rc8 {[%clk 0:01:01]} 52. Rg7+ {[%clk 0:00:17]}  Kh8 {[%clk 0:00:58]} 53. Rh7+ {[%clk 0:00:17]} 1-0


[Site "https://www.chess.com"]